fUST/lending_fUST_20250925
["ID","MTS","AMOUNT","RATE_DAILY","PERIOD"]
[387684049,1758808254601,-480.0,0.00024259,2]
[387684050,1758808254611,-480.0,0.00024259,2]
[387684051,1758808254620,-480.0,0.00024259,2]
[387684052,1758808254629,-564.88,0.00024259,2]
[387684053,1758808254638,-1324.92,0.00024261,2]
[387684054,1758808254648,-480.0,0.00024261,2]
[387684055,1758808254657,-168.0,0.00024352,2]
[387684056,1758808254666,-168.0,0.00024357,2]
[387684057,1758808254675,-168.0,0.00024531,2]
[387684058,1758808254697,-970.13,0.00024532,2]
[387684059,1758808254713,-480.0,0.00024533,2]
[387684060,1758808254733,-480.0,0.00024533,2]
[387684061,1758808254751,-480.0,0.00024533,2]
[387684062,1758808254770,-564.88,0.00024533,2]
[387684063,1758808254786,-1324.92,0.00024535,2]
[387684064,1758808254801,-480.0,0.00024535,2]
[387684065,1758808254817,-168.0,0.00024615,2]
[387684066,1758808254833,-380.0,0.00024658,2]
[387684067,1758808254847,-168.0,0.0002477,2]
[387684068,1758808254864,-1616.73,0.000248,2]
[387684069,1758808254881,-970.13,0.00024806,2]
[387684070,1758808254900,-474.46722905,0.00024807,2]
[387684071,1758808254912,-480.0,0.00024807,2]
[387684072,1758808254925,-480.0,0.00024807,2]
[387684073,1758808254944,-564.88,0.00024807,2]
[387684074,1758808254957,-1324.92,0.00024809,2]
[387684075,1758808254971,-480.0,0.00024809,2]
[387684076,1758808254983,-168.0,0.0002484,2]
[387684077,1758808254998,-168.0,0.00024853,2]
[387684078,1758808255012,-58435.81535175,0.000249,2]
[387684079,1758808255178,-347478.65836525,0.000249,2]
[387684080,1758808255192,-171.67,0.00024916,2]
[387684081,1758808255206,-168.0,0.00025007,2]
[387684082,1758808255220,-970.13,0.0002508,2]
[387684083,1758808255236,-480.0,0.00025081,2]
[387684084,1758808255250,-480.0,0.00025081,2]
[387684085,1758808255263,-564.88,0.00025081,2]
[387684086,1758808255273,-1324.92,0.00025083,2]
[387684087,1758808255282,-480.0,0.00025083,2]
[387684088,1758808255292,-168.0,0.0002519,2]
[387684089,1758808255405,-970.13,0.00025354,2]
[387684090,1758808255414,-480.0,0.00025355,2]
[387684091,1758808255424,-480.0,0.00025355,2]
[387684092,1758808255434,-564.88,0.00025355,2]
[387684093,1758808255444,-1324.92,0.00025357,2]
[387684094,1758808255455,-480.0,0.00025357,2]
[387684095,1758808255466,-970.35502774,0.00025628,2]
[387684096,1758808255475,-366.38,0.00025629,2]
[387684097,1758808255486,-222.18495634,0.00025629,2]
[387684098,1758808255495,-564.99000619,0.00025629,2]
[387684099,1758808255506,-1324.95758226,0.00025631,2]
[387684100,1758808255515,-397.06798182,0.00025631,2]
[387684101,1758808255525,-200.28,0.00025874,2]
[387684102,1758808255534,-155.1,0.00026692,7]
[387684103,1758808255544,-155.1,0.00026792,7]
[387684104,1758808255553,-500.0,0.00026818,2]
[387684105,1758808255562,-151.0,0.00026818,2]
[387684106,1758808255572,-151.0,0.00026818,2]
[387684107,1758808255583,-500.0,0.00026818,2]
[387684108,1758808255592,-151.0,0.00026818,2]
[387684109,1758808255602,-158.36051303,0.00026818,2]
[387684110,1758808255612,-228.89,0.00026833,2]
[387684111,1758808255621,-155.1,0.00026892,7]
[387684112,1758808255631,-155.1,0.00026992,7]
[387684113,1758808255641,-978.0,0.00027062,2]
[387684114,1758808255651,-410.0,0.00027062,2]
[387684115,1758808255660,-635.0,0.00027062,2]
[387684116,1758808255670,-2160.0,0.00027062,2]
[387684117,1758808255679,-4586.0,0.00027062,2]
[387684118,1758808255689,-500.0,0.00027092,2]
[387684119,1758808255700,-151.0,0.00027092,2]
[387684120,1758808255709,-300.86364638,0.00027092,2]
[387684121,1758808255719,-500.0,0.00027092,2]
[387684122,1758808255731,-151.0,0.00027092,2]
[387684123,1758808255741,-229.08924033,0.00027092,2]
[387684124,1758808255751,-155.1,0.00027092,7]
[387684125,1758808255760,-1931.06332162,0.00027118,2]
[387684126,1758808255770,-179.64071856,0.00027165,2]
[387684127,1758808255779,-155.1,0.00027192,7]
[387684128,1758808255789,-155.1,0.00027292,7]
[387684129,1758808255799,-500.0,0.00027366,2]
[387684130,1758808255812,-151.0,0.00027366,2]
[387684131,1758808255822,-500.0,0.00027366,2]
[387684132,1758808255834,-155.1,0.00027392,7]
[387684133,1758808255843,-480.0,0.00027397,2]
[387684134,1758808255852,-155.1,0.00027492,15]
[387684135,1758808255862,-155.1,0.00027592,15]
[387684136,1758808255872,-1616.73,0.000276,2]
[387684137,1758808255882,-500.0,0.0002764,2]
[387684138,1758808255891,-151.0,0.0002764,2]
[387684139,1758808255901,-500.0,0.0002764,2]
[387684140,1758808255910,-157.55736161,0.00027672,5]
[387684141,1758808255919,-155.1,0.00027692,15]
[387684142,1758808255929,-257.5,0.00027791,2]
[387684143,1758808255939,-155.1,0.00027792,15]
[387684144,1758808255948,-155.1,0.00027892,15]
[387684145,1758808255957,-522.8876733,0.000279,2]
[387684146,1758808255966,-522.88767323,0.000279,2]
[387684147,1758808255975,-500.0,0.00027914,2]
[387684148,1758808255985,-252.04236636,0.00027914,2]
[387684149,1758808255995,-548.0,0.00027914,2]
[387684150,1758808256004,-155.1,0.00027992,15]
[387684151,1758808256014,-1131.18,0.00028,2]
[387684152,1758808256023,-155.1,0.00028092,15]
[387684153,1758808256033,-1131.18,0.0002814,2]
[387684154,1758808256042,-522.88767323,0.00028168,2]
[387684155,1758808256051,-500.0,0.00028188,2]
[387684156,1758808256061,-155.14060003,0.00028192,15]
[387684157,1758808256070,-1131.18,0.0002828,2]
[387684158,1758808256080,-500.0,0.00028462,2]
[387684159,1758808256090,-157.55736161,0.00028556,5]
[387684160,1758808256099,-500.0,0.00028736,2]
[387684161,1758808256109,-286.11,0.00028749,2]
[387684162,1758808256119,-8127.6179661,0.00029405,2]
[387684163,1758808256128,-166.0,0.00029432,7]
[387684164,1758808256138,-166.0,0.00029432,7]
[387684165,1758808256148,-166.0,0.00029432,7]
[387684166,1758808256158,-172.0,0.00029432,7]
[387684167,1758808256167,-174.0,0.00029432,7]
[387684168,1758808256177,-174.0,0.00029432,7]
[387684169,1758808256187,-174.0,0.00029432,7]
[387684170,1758808256196,-174.0,0.00029432,7]
[387684171,1758808256206,-177.81496533,0.00029432,7]
[387684172,1758808256216,-162.0,0.00029432,7]
[387684173,1758808256225,-162.0,0.00029432,7]
[387684174,1758808256236,-162.0,0.00029432,7]
[387684175,1758808256245,-162.0,0.00029432,7]
[387684176,1758808256255,-162.0,0.00029432,7]
[387684177,1758808256264,-162.0,0.00029432,7]
[387684178,1758808256274,-162.0,0.00029432,7]
[387684179,1758808256285,-151.26263461,0.00029432,7]
[387684180,1758808256294,-156.0,0.00029432,7]
[387684181,1758808256304,-156.0,0.00029432,7]
[387684182,1758808256313,-156.0,0.00029432,7]
[387684183,1758808256323,-156.0,0.00029432,7]
[387684184,1758808256332,-162.98096703,0.00029432,7]
[387684185,1758808256342,-157.55736161,0.00029439,5]
[387684186,1758808256351,-491746.40066427,0.00029443,20]
[387684187,1758808256360,-30450.91438568,0.00029443,2]
[387684188,1758808256369,-10683.86010432,0.00029443,2]
[387684189,1758808256378,-2920.0,0.00029443,2]
[387684190,1758808256387,-10217.15900398,0.00029443,2]
[387684191,1758808256397,-163.28594053,0.00029443,2]
[387684192,1758808256406,-385.02381461,0.00029443,2]
[387684193,1758808256415,-201.43637402,0.00029443,2]
[387684194,1758808256425,-272.93304924,0.00029443,2]
[387684195,1758808256434,-2000.0,0.00029443,30]
[387684196,1758808256443,-1858.099999,0.00029443,30]
[387684197,1758808256453,-522.88767323,0.00029844,2]
[387684198,1758808256462,-3114.0,0.0003,120]
[387684199,1758808256472,-978.0,0.00030062,2]
[387684200,1758808256481,-410.0,0.00030062,2]
[387684201,1758808256493,-635.0,0.00030062,2]
[387684202,1758808256503,-2160.0,0.00030062,2]
[387684203,1758808256512,-1616.73,0.000302,2]
[387684204,1758808256522,-500.0,0.00030887,7]
[387684205,1758808256531,-174.26759781,0.00031096,30]
[387684206,1758808256541,-174.26759782,0.00031096,30]
[387684207,1758808256549,-157.606122,0.00031197,20]
[387684208,1758808256558,-174.26759782,0.00031425,30]
[387684209,1758808256567,-174.26759781,0.00031507,30]
[387684210,1758808256577,-522.88767323,0.0003152,2]
[387684211,1758808256586,-174.26759782,0.00031753,30]
[387684212,1758808256596,-174.26759781,0.00031918,30]
[387684213,1758808256606,-1125.96698239,0.00032,120]
[387684214,1758808256615,-162.75628058,0.00032,120]
[387684215,1758808256625,-6253.47107202,0.00032,120]
[387684216,1758808256636,-183.22441895,0.00032,120]
[387684217,1758808256646,-716.82456778,0.00032,120]
[387684218,1758808256655,-183.04,0.00032,120]
[387684219,1758808256665,-690.72402878,0.00032,120]
[387684220,1758808256674,-216.09257822,0.00032,120]
[387684221,1758808256684,-160.0,0.00032,120]
[387684222,1758808256694,-160.0,0.00032,120]
[387684223,1758808256705,-160.0,0.00032,120]
[387684224,1758808256714,-160.0,0.00032,120]
[387684225,1758808256728,-160.0,0.00032,120]
[387684226,1758808256739,-174.26759782,0.0003211,30]
[387684227,1758808256748,-162.75628058,0.000323,120]
[387684228,1758808256758,-1125.96698239,0.000323,120]
[387684229,1758808256769,-6253.47107202,0.000323,120]
[387684230,1758808256779,-183.22441895,0.000323,120]
[387684231,1758808256789,-716.82456778,0.000323,120]
[387684232,1758808256799,-183.04,0.000323,120]
[387684233,1758808256809,-690.72402878,0.000323,120]
[387684234,1758808256818,-174.26759781,0.00032356,30]
[387684235,1758808256827,-174.26759782,0.00032438,30]
[387684236,1758808256836,-162.75628058,0.000326,120]
[387684237,1758808256845,-1125.96698239,0.000326,120]
[387684238,1758808256854,-6253.47107202,0.000326,120]
[387684239,1758808256864,-183.22441895,0.000326,120]
[387684240,1758808256873,-716.82456778,0.000326,120]
[387684241,1758808256882,-183.04,0.000326,120]
[387684242,1758808256891,-690.72402878,0.000326,120]
[387684243,1758808256900,-174.26759781,0.00032767,30]
[387684244,1758808256909,-174.26759782,0.00032767,30]
[387684245,1758808256918,-200.0,0.0003279,33]
[387684246,1758808256928,-172.0,0.000328,120]
[387684247,1758808256938,-480.0,0.00032876,120]
[387684248,1758808256947,-704.46,0.00032876,120]
[387684249,1758808256957,-1500.0,0.00032877,2]
[387684250,1758808256967,-2541.21,0.00032877,10]
[387684251,1758808257047,-2117.68,0.00032877,10]
[387684252,1758808257057,-1764.73,0.00032877,10]
[387684253,1758808257066,-1470.61,0.00032877,10]
[387684254,1758808257076,-1616.73,0.000329,14]
[387684255,1758808257085,-162.75628058,0.00033,120]
[387684256,1758808257096,-1125.96698239,0.00033,120]
[387684257,1758808257106,-6253.47107202,0.00033,120]
[387684258,1758808257116,-716.82456778,0.00033,120]
[387684259,1758808257126,-183.04,0.00033,120]
[387684260,1758808257136,-690.72402878,0.00033,120]
[387684261,1758808257146,-978.0,0.00033062,2]
[387684262,1758808257156,-410.0,0.00033062,2]
[387684263,1758808257166,-635.0,0.00033062,2]
[387684264,1758808257176,-2160.0,0.00033062,2]
[387684265,1758808257186,-160.0,0.00033134,3]
[387684266,1758808257196,-522.88767323,0.00033196,2]
[387684267,1758808257206,-162.75628058,0.000333,120]
[387684268,1758808257216,-1125.96698239,0.000333,120]
[387684269,1758808257225,-6253.47107202,0.000333,120]
[387684270,1758808257237,-716.82456778,0.000333,120]
[387684271,1758808257248,-690.72402878,0.000333,120]
[387684272,1758808257258,-183.04,0.000333,120]
[387684273,1758808257268,-151.0,0.000333,7]
[387684274,1758808257278,-151.0,0.000333,7]
[387684275,1758808257288,-222.63277,0.000333,7]
[387684276,1758808257298,-151.0,0.000333,7]
[387684277,1758808257307,-151.0,0.000333,7]
[387684278,1758808257317,-151.0,0.000333,7]
[387684279,1758808257327,-151.0,0.000333,7]
[387684280,1758808257337,-151.0,0.000333,7]
[387684281,1758808257346,-151.673991,0.000333,7]
[387684282,1758808257356,-151.0,0.000333,7]
[387684283,1758808257366,-151.0,0.000333,7]
[387684284,1758808257375,-151.0,0.000333,7]
[387684285,1758808257385,-156.454928,0.000333,7]
[387684286,1758808257395,-151.0,0.000333,7]
[387684287,1758808257405,-151.0,0.000333,7]
[387684288,1758808257415,-297.120288,0.000333,7]
[387684289,1758808257424,-151.0,0.000333,7]
[387684290,1758808257434,-151.0,0.000333,7]
[387684291,1758808257444,-151.0,0.000333,7]
[387684292,1758808257453,-151.0,0.000333,7]
[387684293,1758808257462,-151.0,0.000333,7]
[387684294,1758808257472,-151.0,0.000333,7]
[387684295,1758808257482,-151.0,0.000333,7]
[387684296,1758808257492,-151.0,0.000333,7]
[387684297,1758808257503,-151.0,0.000333,7]
[387684298,1758808257513,-151.0,0.000333,7]
[387684299,1758808257523,-151.0,0.000333,7]
[387684300,1758808257533,-189.546051,0.000333,7]
[387684301,1758808257544,-189.546051,0.000333,7]
[387684302,1758808257555,-189.546051,0.000333,7]
[387684303,1758808257565,-151.0,0.000333,7]
[387684304,1758808257575,-151.0,0.000333,7]
[387684305,1758808257585,-151.0,0.000333,7]
[387684306,1758808257594,-189.546051,0.000333,7]
[387684307,1758808257604,-151.0,0.000333,7]
[387684308,1758808257613,-151.0,0.000333,7]
[387684309,1758808257623,-151.0,0.000333,7]
[387684310,1758808257633,-151.0,0.000333,7]
[387684311,1758808257642,-151.0,0.000333,7]
[387684312,1758808257651,-151.0,0.000333,7]
[387684313,1758808257661,-151.0,0.000333,7]
[387684314,1758808257671,-151.0,0.000333,7]
[387684315,1758808257681,-6253.47107202,0.000336,120]
[387684316,1758808257691,-151.0,0.000336,7]
[387684317,1758808257700,-151.0,0.000336,7]
[387684318,1758808257709,-151.0,0.000336,7]
[387684319,1758808257719,-151.0,0.000336,7]
[387684320,1758808257731,-151.0,0.000336,7]
[387684321,1758808257744,-151.0,0.000336,7]
[387684322,1758808257754,-295.534835,0.000336,7]
[387684323,1758808257764,-151.0,0.000336,7]
[387684324,1758808257775,-151.0,0.000336,7]
[387684325,1758808257785,-161.371641,0.000336,7]
[387684326,1758808257794,-151.946875,0.000336,7]
[387684327,1758808257805,-704.46,0.00033698,120]
[387684328,1758808257814,-6253.47107202,0.00034,120]
[387684329,1758808257824,-151.0,0.00034,7]
[387684330,1758808257834,-151.0,0.00034,7]
[387684331,1758808257844,-151.0,0.00034,7]
[387684332,1758808257854,-151.0,0.00034,7]
[387684333,1758808257863,-151.0,0.00034,7]
[387684334,1758808257873,-151.0,0.00034,7]
[387684335,1758808257883,-151.0,0.00034,7]
[387684336,1758808257893,-151.0,0.00034,7]
[387684337,1758808257903,-151.0,0.00034,7]
[387684338,1758808257913,-151.0,0.00034,7]
[387684339,1758808257922,-151.0,0.00034139,7]
[387684340,1758808257931,-151.0,0.00034139,7]
[387684341,1758808257941,-151.0,0.00034139,7]
[387684342,1758808257951,-151.0,0.00034139,7]
[387684343,1758808257961,-151.0,0.00034139,7]
[387684344,1758808257971,-151.0,0.00034139,7]
[387684345,1758808257981,-6280.39002881,0.00034139,48]
[387684346,1758808257992,-5000.0,0.00034139,42]
[387684347,1758808258001,-5000.0,0.00034139,44]
[387684348,1758808258011,-5000.0,0.00034139,43]
[387684349,1758808258021,-5000.0,0.00034139,42]
[387684350,1758808258031,-6253.47107202,0.000343,120]
[387684351,1758808258041,-500.0,0.00034426,7]
[387684352,1758808258051,-704.46,0.0003452,120]
[387684353,1758808258061,-6253.47107202,0.000347,120]
[387684354,1758808258071,-522.88767323,0.00034872,2]
[387684355,1758808258080,-1931.06332162,0.00034962,2]
[387684356,1758808258090,-6253.47107202,0.00035,120]
[387684357,1758808258099,-151.0,0.00035062,30]
[387684358,1758808258112,-500.0,0.00035248,7]
[387684359,1758808258123,-704.46,0.00035342,120]
[387684360,1758808258133,-1813.5166984,0.00035644,2]
[387684361,1758808258142,-1616.73,0.000358,14]
[387684362,1758808258153,-978.0,0.00036062,2]
[387684363,1758808258172,-410.0,0.00036062,2]
[387684364,1758808258182,-635.0,0.00036062,2]
[387684365,1758808258192,-2160.0,0.00036062,2]
[387684366,1758808258201,-500.0,0.0003607,7]
[387684367,1758808258211,-704.46,0.00036164,120]
[387684368,1758808258220,-1000.0,0.0003644,30]
[387684369,1758808258230,-1000.0,0.0003644,30]
[387684370,1758808258240,-504.06242318,0.0003644,30]
[387684371,1758808258250,-160.0,0.00036542,4]
[387684372,1758808258259,-522.88767323,0.00036548,2]
[387684373,1758808258269,-151.0,0.00036674,30]
[387684374,1758808258278,-194.72792766,0.00036711,30]
[387684375,1758808258287,-350.0,0.00036711,30]
[387684376,1758808258297,-151.0,0.00036711,30]
[387684377,1758808258307,-500.0,0.00036711,30]
[387684378,1758808258316,-250.0,0.00036711,30]
[387684379,1758808258325,-500.0,0.00036892,7]
[387684380,1758808258336,-704.46,0.00036986,120]
[387684381,1758808258345,-404.6502713,0.00037036,2]
[387684382,1758808258355,-519.73855678,0.00037114,120]
[387684383,1758808258364,-697548.79706733,0.0003744,7]
[387684384,1758808258374,-204.54044943,0.0003744,14]
[387684385,1758808258384,-328.0,0.0003744,14]
[387684386,1758808258394,-151.0,0.0003744,14]
[387684387,1758808258403,-328.0,0.0003744,14]
[387684388,1758808258413,-151.0,0.0003744,14]
[387684389,1758808258423,-328.0,0.0003744,14]
[387684390,1758808258432,-151.0,0.0003744,14]
[387684391,1758808258443,-328.0,0.0003744,14]
[387684392,1758808258452,-328.0,0.0003744,14]
[387684393,1758808258461,-328.0,0.0003744,14]
[387684394,1758808258471,-328.0,0.0003744,14]
[387684395,1758808258481,-328.0,0.0003744,14]
[387684396,1758808258490,-328.0,0.0003744,14]
[387684397,1758808258500,-328.0,0.0003744,14]
[387684398,1758808258509,-328.0,0.0003744,14]
[387684399,1758808258518,-151.0,0.0003744,14]
[387684400,1758808258528,-328.0,0.0003744,14]
[387684401,1758808258609,-151.0,0.0003744,14]
[387684402,1758808258620,-328.0,0.0003744,14]
[387684403,1758808258629,-328.0,0.0003744,14]
[387684404,1758808258639,-163.94982091,0.0003744,14]
[387684405,1758808258648,-328.0,0.0003744,14]
[387684406,1758808258658,-328.0,0.0003744,14]
[387684407,1758808258667,-328.0,0.0003744,14]
[387684408,1758808258676,-328.0,0.0003744,14]
[387684409,1758808258686,-166.0,0.0003744,14]
[387684410,1758808258695,-328.0,0.0003744,14]
[387684411,1758808258705,-328.0,0.0003744,14]
[387684412,1758808258715,-328.0,0.0003744,14]
[387684413,1758808258729,-328.0,0.0003744,14]
[387684414,1758808258750,-328.0,0.0003744,14]
[387684415,1758808258760,-328.0,0.0003744,14]
[387684416,1758808258770,-328.0,0.0003744,14]
[387684417,1758808258780,-328.0,0.0003744,14]
[387684418,1758808258790,-379.08033987,0.0003744,14]
[387684419,1758808258801,-151.0,0.0003744,30]
[387684420,1758808258810,-151.0,0.0003744,30]
[387684421,1758808258820,-151.0,0.0003744,30]
[387684422,1758808258829,-152.570141,0.0003744,30]
[387684423,1758808258839,-151.0,0.0003744,30]
[387684424,1758808258848,-151.0,0.0003744,30]
[387684425,1758808258858,-151.498244,0.0003744,30]
[387684426,1758808258867,-151.0,0.0003744,30]
[387684427,1758808258877,-151.0,0.0003744,30]
[387684428,1758808258887,-151.0,0.0003744,30]
[387684429,1758808258897,-151.0,0.0003744,30]
[387684430,1758808258906,-152.333578,0.0003744,30]
[387684431,1758808258917,-151.0,0.0003744,30]
[387684432,1758808258927,-151.0,0.0003744,30]
[387684433,1758808258936,-151.0,0.0003744,30]
[387684434,1758808258945,-151.0,0.0003744,30]
[387684435,1758808258955,-151.0,0.0003744,30]
[387684436,1758808258964,-151.0,0.0003744,30]
[387684437,1758808258974,-151.0,0.0003744,30]
[387684438,1758808258984,-151.0,0.0003744,30]
[387684439,1758808258993,-151.0,0.0003744,30]
[387684440,1758808259003,-164.465668,0.0003744,30]
[387684441,1758808259013,-285.863933,0.0003744,30]
[387684442,1758808259022,-151.0,0.0003744,30]
[387684443,1758808259032,-151.0,0.0003744,30]
[387684444,1758808259041,-151.0,0.0003744,30]
[387684445,1758808259052,-151.0,0.0003744,30]
[387684446,1758808259062,-151.0,0.0003744,30]
[387684447,1758808259071,-151.0,0.0003744,30]
[387684448,1758808259082,-151.0,0.0003744,30]
[387684449,1758808259091,-151.0,0.0003744,30]
[387684450,1758808259101,-151.0,0.0003744,30]
[387684451,1758808259110,-151.0,0.0003744,30]
[387684452,1758808259120,-157.46469,0.0003744,30]
[387684453,1758808259130,-151.0,0.0003744,30]
[387684454,1758808259139,-151.0,0.0003744,30]
[387684455,1758808259149,-151.0,0.0003744,30]
[387684456,1758808259159,-262.187552,0.0003744,30]
[387684457,1758808259169,-153.75635,0.0003744,30]
[387684458,1758808259178,-151.0,0.0003744,30]
[387684459,1758808259188,-151.0,0.0003744,30]
[387684460,1758808259198,-151.1,0.0003744,30]
[387684461,1758808259207,-151.0,0.0003744,30]
[387684462,1758808259217,-151.0,0.0003744,30]
[387684463,1758808259227,-151.0,0.0003744,30]
[387684464,1758808259236,-151.0,0.0003744,30]
[387684465,1758808259246,-151.0,0.0003744,30]
[387684466,1758808259256,-151.0,0.0003744,15]
[387684467,1758808259265,-151.0,0.0003744,30]
[387684468,1758808259274,-151.0,0.0003744,30]
[387684469,1758808259284,-151.0,0.0003744,30]
[387684470,1758808259294,-151.0,0.0003744,30]
[387684471,1758808259303,-151.0,0.0003744,30]
[387684472,1758808259313,-151.0,0.0003744,30]
[387684473,1758808259322,-151.0,0.0003744,30]
[387684474,1758808259331,-151.0,0.0003744,30]
[387684475,1758808259340,-151.0,0.0003744,30]
[387684476,1758808259350,-151.0,0.0003744,30]
[387684477,1758808259359,-151.0,0.0003744,30]
[387684478,1758808259368,-222.166572,0.0003744,30]
[387684479,1758808259378,-151.0,0.0003744,30]
[387684480,1758808259388,-257.350944,0.0003744,30]
[387684481,1758808259397,-151.0,0.0003744,30]
[387684482,1758808259407,-151.0,0.0003744,30]
[387684483,1758808259417,-151.0,0.0003744,30]
[387684484,1758808259426,-151.0,0.0003744,30]
[387684485,1758808259435,-151.0,0.0003744,30]
[387684486,1758808259445,-151.0,0.0003744,30]
[387684487,1758808259454,-151.0,0.0003744,30]
[387684488,1758808259464,-151.0,0.0003744,30]
[387684489,1758808259473,-151.0,0.0003744,30]
[387684490,1758808259482,-151.0,0.0003744,30]
[387684491,1758808259493,-189.546051,0.0003744,30]
[387684492,1758808259502,-189.546051,0.0003744,30]
[387684493,1758808259511,-189.546051,0.0003744,30]
[387684494,1758808259520,-151.0,0.0003744,30]
[387684495,1758808259529,-151.0,0.0003744,30]
[387684496,1758808259538,-189.546051,0.0003744,30]
[387684497,1758808259548,-151.0,0.0003744,30]
[387684498,1758808259559,-151.0,0.0003744,30]
[387684499,1758808259568,-151.0,0.0003744,30]
[387684500,1758808259578,-151.0,0.0003744,30]
[387684501,1758808259587,-151.0,0.0003744,30]
[387684502,1758808259597,-151.0,0.0003744,30]
[387684503,1758808259607,-187.78006525,0.00037568,46]
[387684504,1758808259616,-151.0,0.00037568,46]
[387684505,1758808259625,-350.0,0.00037568,46]
[387684506,1758808259635,-500.0,0.00037568,46]
[387684507,1758808259644,-250.0,0.00037568,46]
[387684508,1758808259654,-200.0,0.00037569,46]
[387684509,1758808259663,-181.08010149,0.00037569,46]
[387684510,1758808259672,-350.0,0.00037569,46]
[387684511,1758808259681,-151.0,0.00037569,46]
[387684512,1758808259691,-500.0,0.00037569,46]
[387684513,1758808259699,-250.0,0.00037569,46]
[387684514,1758808259708,-704.46,0.00037808,120]
[387684515,1758808259717,-60079.0,0.00038,120]
[387684516,1758808259727,-6000.0,0.00038,60]
[387684517,1758808259741,-500.0,0.00038,5]
[387684518,1758808259750,-6945.79678127,0.00038,30]
[387684519,1758808259760,-20313.68382273,0.00038,7]
[387684520,1758808259770,-233.66602051,0.00038,30]
[387684521,1758808259779,-233.66602051,0.00038,7]
[387684522,1758808259788,-160.0,0.00038,30]
[387684523,1758808259798,-519.73855678,0.00038211,120]
[387684524,1758808259809,-522.88767323,0.00038224,120]
[387684525,1758808259819,-151.0,0.00038287,30]
[387684526,1758808259829,-1500.0,0.00038356,2]
[387684527,1758808259838,-1616.73,0.000385,14]
[387684528,1758808259848,-500.0,0.00038536,7]
[387684529,1758808259858,-1007.0,0.000386,120]
[387684530,1758808259867,-704.46,0.0003863,120]
[387684531,1758808259876,-978.0,0.00039062,2]
[387684532,1758808259885,-410.0,0.00039062,2]
[387684533,1758808259895,-635.0,0.00039062,2]
[387684534,1758808259905,-2160.0,0.00039062,2]
[387684535,1758808259914,-200.0,0.00039177,30]
[387684536,1758808259924,-174.61919141,0.00039177,30]
[387684537,1758808259934,-500.0,0.00039177,30]
[387684538,1758808259943,-350.0,0.00039177,30]
[387684539,1758808260017,-151.0,0.00039177,30]
[387684540,1758808260027,-250.0,0.00039177,30]
[387684541,1758808260037,-200.0,0.00039193,32]
[387684542,1758808260048,-168.3888056,0.00039193,32]
[387684543,1758808260059,-350.0,0.00039193,32]
[387684544,1758808260070,-151.0,0.00039193,32]
[387684545,1758808260080,-500.0,0.00039193,32]
[387684546,1758808260090,-250.0,0.00039193,32]
[387684547,1758808260100,-151.0,0.00039193,32]
[387684548,1758808260110,-157.606122,0.00039281,10]